bitfinex-derivatives/quotes_SOLF0:USTF0_20260305
["timestamp","ask_amount","ask_price","bid_price","bid_amount"]
[1772740845316,10.133,88.808,88.75,3.57431074]
[1772740845317,3.96867009,88.799,88.75,3.57431074]
[1772740845517,3.96867009,88.799,88.747,3.76988275]
[1772740845715,3.96867009,88.799,88.75,7.34419349]
[1772740846017,3.96867009,88.799,88.751,3.76988275]
[1772740846411,14.10267009,88.799,88.751,3.76988275]
[1772740846715,3.57261054,88.81,88.761,3.76988275]
[1772740846917,3.57261054,88.83,88.772,3.76988275]
[1772740847113,3.57261054,88.84,88.791,3.76988275]
[1772740847413,3.57261054,88.84,88.754,20.91949474]
[1772740847414,3.96867009,88.859,88.801,3.76988275]
[1772740847619,3.96867009,88.859,88.811,3.76988275]
[1772740847813,3.96867009,88.859,88.8,3.57261054]
[1772740848013,3.96867009,88.859,88.8,7.34249329]
[1772740848312,3.96867009,88.859,88.801,3.76988275]
[1772740849109,10.129,88.843,88.801,3.76988275]
[1772740849315,10.129,88.843,88.8,3.57261054]
[1772740849316,7.54128063,88.84,88.79,3.57261054]
[1772740849511,3.96867009,88.839,88.79,3.57261054]
[1772740849820,3.96867009,88.839,88.787,3.76988275]
[1772740849821,3.57261054,88.83,88.787,3.76988275]
[1772740850016,3.96867009,88.839,88.787,3.76988275]
[1772740850715,3.57261054,88.84,88.791,3.76988275]
[1772740851115,10.129,88.847,88.791,13.90488275]
[1772740851317,3.96867009,88.846,88.792,3.76988275]
[1772740852219,3.57261054,88.84,88.792,3.76988275]
[1772740852414,3.96867009,88.855,88.81,3.57261054]
[1772740852619,3.96867009,88.849,88.801,3.76988275]
[1772740854621,10.129,88.848,88.801,3.76988275]
[1772740855117,3.96867009,88.839,88.79,3.57261054]
[1772740855322,3.96867009,88.839,88.79,7.34249329]
[1772740855921,10.131,88.829,88.79,3.76988275]
[1772740856222,3.96867009,88.829,88.78,3.57261054]
[1772740856624,3.96867009,88.829,88.776,3.76988275]
[1772740857312,10.133,88.814,88.776,3.76988275]
[1772740857517,14.10167009,88.814,88.764,10.138]
[1772740857720,14.10167009,88.814,88.764,13.90788275]
[1772740857917,3.57261054,88.8,88.764,3.76988275]
[1772740858721,3.57261054,88.8,88.762,3.76988275]
[1772740858922,3.96867009,88.809,88.762,3.76988275]
[1772740859423,3.96867009,88.809,88.731,20.284]
[1772740859424,10.132,88.819,88.771,3.76988275]
[1772740860522,10.132,88.819,88.773,10.137]
[1772740861016,10.41344102,88.861,88.77,3.57261054]
[1772740861017,3.57261054,88.83,88.776,3.62274476]
[1772740861222,3.57261054,88.83,88.78,3.57261054]
[1772740861423,17.61326834,88.83,88.781,3.62274476]
[1772740861724,3.9096578,88.829,88.781,3.62274476]
[1772740862520,14.0406578,88.827,88.781,3.62274476]
[1772740863030,14.0406578,88.827,88.782,10.136]
[1772740863929,3.9096578,88.827,88.782,13.75874476]
[1772740864524,30.66744102,88.865,88.766,3.62274476]
[1772740864525,3.57261054,88.81,88.766,3.62274476]
[1772740865330,3.57261054,88.81,88.768,3.62274476]
[1772740865533,3.9096578,88.819,88.768,3.62274476]
[1772740866027,3.9096578,88.819,88.776,3.62274476]
[1772740868027,3.57261054,88.82,88.776,3.62274476]
[1772740868229,3.57261054,88.83,88.781,3.62274476]
[1772740868826,3.57261054,88.84,88.793,3.62274476]
[1772740869428,3.57261054,88.84,88.795,3.62274476]
[1772740869728,3.57261054,88.84,88.751,20.28]
[1772740869729,3.57261054,88.86,88.811,3.62274476]
[1772740869931,3.9096578,88.866,88.811,3.62274476]
[1772740870133,3.9096578,88.859,88.811,3.62274476]
[1772740870631,3.9096578,88.859,88.814,10.132]
[1772740871436,7.48226834,88.84,88.794,3.62274476]
[1772740871637,3.57261054,88.83,88.794,3.62274476]
[1772740871838,3.57261054,88.83,88.781,3.62274476]
[1772740872938,3.9096578,88.829,88.781,3.62274476]
[1772740873834,3.57261054,88.84,88.78,3.57261054]
[1772740873835,3.57261054,88.84,88.784,3.62274476]
[1772740874839,10.13,88.838,88.788,13.75774476]
[1772740875337,10.41344102,88.868,88.749,20.28]
[1772740875338,10.128,88.857,88.806,3.62274476]
[1772740875534,14.0376578,88.857,88.806,3.62274476]
[1772740875733,8.46555013,88.859,88.806,3.62274476]
[1772740875734,3.57261054,88.85,88.806,3.62274476]
[1772740875939,7.48226834,88.84,88.793,3.62274476]
[1772740876337,3.57261054,88.83,88.785,10.136]
[1772740876537,3.57261054,88.83,88.781,3.62274476]
[1772740876938,3.9096578,88.839,88.79,3.57261054]
[1772740878239,3.57261054,88.83,88.786,10.136]
[1772740879038,14.0396578,88.839,88.786,13.75874476]
[1772740879239,3.9096578,88.838,88.786,13.75874476]
[1772740879737,3.57261054,88.83,88.786,13.75874476]
[1772740880242,7.48226834,88.83,88.786,13.75874476]
[1772740880442,10.131,88.829,88.786,13.75874476]
[1772740881338,7.48226834,88.83,88.792,10.135]
[1772740881540,3.9096578,88.83,88.786,3.62274476]
[1772740881939,3.9096578,88.828,88.772,3.62274476]
[1772740882338,3.57261054,88.82,88.772,3.62274476]
[1772740882738,3.9096578,88.818,88.772,3.62274476]
[1772740884447,10.132,88.817,88.773,10.137]
[1772740884642,10.132,88.817,88.773,13.75974476]
[1772740884838,14.0416578,88.817,88.773,13.75974476]
[1772740885142,10.133,88.814,88.773,13.75974476]
[1772740885551,10.133,88.814,88.773,3.62274476]
[1772740885939,10.133,88.807,88.766,10.138]
[1772740886143,3.57261054,88.8,88.76,3.62274476]
[1772740887445,10.134,88.798,88.76,3.62274476]
[1772740889349,3.57261054,88.8,88.76,3.62274476]
[1772740889548,3.89519603,88.799,88.73,21.01267866]
[1772740889848,3.89519603,88.779,88.726,3.78714781]
[1772740890247,3.89519603,88.779,88.727,10.142]
[1772740890248,10.137,88.772,88.727,10.142]
[1772740890448,17.4571109,88.807,88.726,3.78714781]
[1772740890449,7.24826171,88.77,88.726,3.78714781]
[1772740890645,3.57261054,88.76,88.726,3.78714781]
[1772740891147,3.57261054,88.76,88.719,10.143]
[1772740891545,3.67565117,88.769,88.72,3.69910261]
[1772740891748,3.67565117,88.769,88.727,3.69910261]
[1772740891948,3.57261054,88.76,88.713,3.69910261]
[1772740892149,10.139,88.759,88.713,3.69910261]
[1772740892350,3.67565117,88.769,88.713,3.69910261]
[1772740892853,10.138,88.767,88.721,10.143]
[1772740893152,3.57261054,88.76,88.721,10.143]
[1772740894155,3.57261054,88.78,88.73,3.57261054]
[1772740894354,3.67565117,88.779,88.73,3.57261054]
[1772740894754,3.67565117,88.779,88.729,3.69910261]
[1772740894958,3.67565117,88.769,88.711,3.69910261]
[1772740896451,3.67565117,88.759,88.711,3.69910261]
[1772740896650,3.57261054,88.75,88.711,3.69910261]
[1772740897553,3.67565117,88.759,88.711,3.69910261]
[1772740897951,10.14,88.753,88.711,3.69910261]
[1772740898151,3.67565117,88.759,88.711,3.69910261]
[1772740899357,3.67565117,88.759,88.712,10.144]
[1772740900654,13.71161054,88.76,88.711,3.69910261]
[1772740900655,3.67565117,88.757,88.711,3.69910261]
[1772740900855,7.24826171,88.75,88.704,10.145]
[1772740901753,7.24826171,88.75,88.705,3.69910261]
[1772740901955,3.67565117,88.75,88.71,13.84310261]
[1772740902454,3.67565117,88.778,88.723,3.69910261]
[1772740903656,3.57261054,88.77,88.723,3.69910261]
[1772740904253,3.57261054,88.76,88.723,3.69910261]
[1772740904454,3.57261054,88.76,88.701,3.69910261]
[1772740904660,3.57261054,88.76,88.711,3.69910261]
[1772740905360,3.67565117,88.769,88.724,10.143]
[1772740905751,3.67565117,88.769,88.72,3.57261054]
[1772740905752,3.67565117,88.769,88.721,3.69910261]
[1772740906256,3.57261054,88.76,88.721,3.69910261]
[1772740907463,3.57261054,88.76,88.722,10.143]
[1772740908168,10.138,88.767,88.722,10.143]
[1772740908560,3.67565117,88.769,88.729,10.142]
[1772740909864,3.67565117,88.759,88.721,10.143]
[1772740910367,3.57558138,88.75,88.712,10.144]
[1772740910566,3.67565117,88.759,88.713,3.69910261]
[1772740910976,3.67565117,88.757,88.713,3.69910261]
[1772740912970,3.57558138,88.76,88.721,13.84210261]
[1772740913470,3.57558138,88.76,88.727,10.142]
[1772740913769,3.67565117,88.769,88.727,10.142]
[1772740914768,7.25123255,88.76,88.721,3.69910261]
[1772740915566,3.57558138,88.77,88.721,3.69910261]
[1772740916569,3.57558138,88.77,88.73,10.142]
[1772740917267,3.67565117,88.769,88.723,10.143]
[1772740917472,3.57558138,88.76,88.723,10.143]
[1772740917970,3.57558138,88.76,88.724,3.69910261]
[1772740918871,3.67565117,88.769,88.724,3.69910261]
[1772740919073,3.57558138,88.76,88.724,3.69910261]
[1772740919372,3.57558138,88.76,88.725,10.143]
[1772740920673,3.67565117,88.769,88.732,3.69032241]
[1772740921270,3.57558138,88.77,88.732,3.69032241]
[1772740921576,3.57558138,88.78,88.741,13.83132241]
[1772740922673,3.89004446,88.779,88.733,10.142]
[1772740923371,3.89004446,88.769,88.728,3.69032241]
[1772740923977,3.89004446,88.769,88.729,10.142]
[1772740924173,3.89004446,88.769,88.728,3.69032241]
[1772740924371,10.39393783,88.817,88.701,20.291]
[1772740924372,3.57558138,88.79,88.741,3.69032241]
[1772740924567,3.89004446,88.795,88.754,10.139]
[1772740924769,3.89004446,88.795,88.682,157.857]
[1772740924770,3.89004446,88.809,88.761,3.69032241]
[1772740926273,3.89004446,88.809,88.764,3.69032241]
[1772740926478,3.89004446,88.823,88.781,3.69032241]
[1772740926875,3.57558138,88.82,88.781,3.69032241]
[1772740927272,3.57558138,88.82,88.676,157.869]
[1772740927273,3.89004446,88.819,88.715,20.288]
[1772740927482,17.40003506,88.849,88.715,20.288]
[1772740927483,3.89004446,88.799,88.751,3.69032241]
[1772740927780,3.57558138,88.81,88.761,3.69032241]
[1772740927981,3.57558138,88.81,88.763,10.138]
[1772740928182,3.57558138,88.81,88.764,3.69032241]
[1772740928382,3.89004446,88.812,88.771,3.69032241]
[1772740929278,3.89004446,88.809,88.75,3.57558138]
[1772740929480,3.89004446,88.799,88.743,3.69032241]
[1772740929980,3.89004446,88.799,88.75,3.57558138]
[1772740930483,3.89004446,88.799,88.751,3.69032241]
[1772740931386,3.89004446,88.799,88.763,10.138]
[1772740931679,3.57558138,88.81,88.764,3.69032241]
[1772740931980,3.89004446,88.829,88.78,3.57558138]
[1772740932477,3.89004446,88.829,88.771,3.69032241]
[1772740932882,3.89004446,88.829,88.781,3.69032241]
[1772740934077,3.89004446,88.829,88.783,3.69032241]
[1772740934282,3.57558138,88.84,88.79,7.26590379]
[1772740934478,3.89004446,88.839,88.79,3.69032241]
[1772740934984,3.89004446,88.839,88.793,3.69032241]
[1772740935487,3.89004446,88.829,88.779,3.69032241]
[1772740935683,3.89004446,88.829,88.78,3.57558138]
[1772740935884,3.89004446,88.829,88.779,3.69032241]
[1772740936082,3.57558138,88.82,88.779,3.69032241]
[1772740936580,3.89004446,88.819,88.779,3.69032241]
[1772740937585,14.02204446,88.819,88.779,3.69032241]
[1772740937985,14.02204446,88.819,88.733,21.01267866]
[1772740937986,3.57558138,88.8,88.758,3.69032241]
[1772740938887,3.57558138,88.79,88.743,3.69032241]
[1772740939586,3.57558138,88.79,88.755,3.69032241]
[1772740939786,3.57558138,88.8,88.755,3.69032241]
[1772740942589,7.46562584,88.81,88.758,3.69032241]
[1772740942886,3.89004446,88.809,88.758,3.69032241]
[1772740943286,3.57558138,88.8,88.758,3.69032241]
[1772740943790,3.57558138,88.79,88.758,3.69032241]
[1772740944482,3.57558138,88.8,88.758,3.69032241]
[1772740944688,3.89004446,88.806,88.761,3.69032241]
[1772740945182,3.57558138,88.82,88.773,10.137]
[1772740945387,3.89004446,88.82,88.774,3.69032241]
[1772740945587,3.89004446,88.85,88.781,3.69032241]
[1772740945787,3.89004446,88.834,88.781,3.69032241]
[1772740945985,3.89004446,88.834,88.784,3.69032241]
[1772740945986,10.13,88.833,88.784,3.69032241]
[1772740946184,3.89004446,88.834,88.791,3.69032241]
[1772740947090,3.57558138,88.82,88.777,3.69032241]
[1772740948994,7.31323999,88.82,88.777,3.69032241]
[1772740949196,3.73765861,88.819,88.777,3.69032241]
[1772740949399,3.57558138,88.81,88.769,10.138]
[1772740949793,3.57558138,88.81,88.769,14.06809317]
[1772740950300,3.73765861,88.819,88.769,14.06809317]
[1772740950495,10.132,88.818,88.769,14.06809317]
[1772740950899,13.70858138,88.81,88.769,3.93009317]
[1772740951099,3.57558138,88.8,88.753,3.96093696]
[1772740951295,3.57558138,88.79,88.753,3.96093696]
[1772740951492,3.57558138,88.78,88.739,3.96093696]
[1772740952502,10.136,88.787,88.739,3.96093696]
[1772740952903,10.136,88.787,88.74,3.57558138]
[1772740953100,10.136,88.787,88.741,3.96093696]
[1772740953801,13.98077647,88.799,88.756,3.96093696]
[1772740954907,3.57558138,88.79,88.741,3.96093696]
[1772740955109,3.84677647,88.789,88.741,3.96093696]
[1772740955608,3.57558138,88.78,88.741,3.96093696]
[1772740956415,3.84677647,88.789,88.742,3.96093696]
[1772740957405,3.84677647,88.789,88.74,3.57558138]
[1772740957406,3.57558138,88.79,88.74,3.57558138]
[1772740958204,3.57558138,88.79,88.757,10.139]
[1772740958408,3.57558138,88.81,88.75,3.57558138]
[1772740959410,10.134,88.803,88.766,10.138]
[1772740959608,3.57558138,88.79,88.74,3.57558138]
[1772740960011,3.57558138,88.79,88.73,3.57558138]
[1772740960204,3.57558138,88.79,88.748,10.14]
[1772740961809,3.57558138,88.78,88.748,10.14]
[1772740962812,3.57558138,88.78,88.741,10.141]
[1772740963610,3.57558138,88.78,88.747,10.14]
[1772740963810,3.57558138,88.79,88.747,10.14]
[1772740965308,3.57558138,88.78,88.74,10.141]
[1772740965908,3.57558138,88.78,88.746,10.14]
[1772740966116,3.57558138,88.79,88.74,3.57558138]
[1772740967418,3.57558138,88.79,88.752,10.14]
[1772740968318,3.57558138,88.79,88.745,10.14]
[1772740968615,3.5742906,88.78,88.73,3.5742906]
[1772740969017,10.136,88.787,88.745,10.14]
[1772740970016,3.5742906,88.78,88.738,10.141]
[1772740970319,3.5742906,88.77,88.72,3.5742906]
[1772740970619,3.5742906,88.76,88.71,3.5742906]
[1772740971320,13.7122906,88.77,88.719,10.143]
[1772740973921,13.7122906,88.77,88.726,10.143]
[1772740974123,3.5742906,88.77,88.726,10.143]
[1772740974329,3.5742906,88.78,88.73,3.5742906]
[1772740974730,3.5742906,88.78,88.7,21.01267866]
[1772740974731,3.5742906,88.78,88.72,3.5742906]
[1772740974928,13.88458803,88.829,88.72,3.5742906]
[1772740974929,3.5742906,88.77,88.73,10.142]
[1772740975230,3.5742906,88.78,88.73,3.5742906]
[1772740975529,3.5742906,88.79,88.74,3.5742906]
[1772740976427,3.5742906,88.79,88.744,10.14]
[1772740980133,3.5742906,88.79,88.75,10.14]
[1772740981232,10.135,88.789,88.74,3.5742906]
[1772740981534,3.5742906,88.79,88.73,3.5742906]
[1772740982131,3.5742906,88.79,88.739,10.141]
[1772740983439,10.136,88.787,88.739,10.141]
[1772740986237,3.5742906,88.78,88.739,10.141]
[1772740987033,3.5742906,88.77,88.72,3.5742906]
[1772740987233,3.5742906,88.77,88.71,3.5742906]
[1772740987533,3.5742906,88.76,88.71,3.5742906]
[1772740989236,3.5742906,88.77,88.71,3.5742906]
[1772740989441,10.138,88.767,88.721,10.143]
[1772740990335,10.139,88.759,88.713,10.144]
[1772740990736,10.139,88.759,88.7,3.5742906]
[1772740990937,10.139,88.759,88.71,3.5742906]
[1772740991138,3.5742906,88.76,88.71,3.5742906]
[1772740991337,10.138,88.768,88.72,3.5742906]
[1772740991539,10.138,88.768,88.71,3.5742906]
[1772740991736,3.5742906,88.76,88.71,3.5742906]
[1772740991937,3.5742906,88.76,88.721,10.143]
[1772740992133,3.5742906,88.76,88.71,3.5742906]
[1772740992337,10.139,88.759,88.713,10.144]
[1772740992534,3.5742906,88.74,88.69,3.5742906]
[1772740993142,3.5742906,88.74,88.704,10.145]
[1772740995548,3.5742906,88.74,88.711,10.144]
[1772740995744,3.5742906,88.75,88.711,10.144]
[1772740997949,3.5742906,88.75,88.718,10.143]
[1772740998442,3.5742906,88.75,88.7,3.5742906]
[1772740999951,3.5742906,88.75,88.69,3.5742906]
[1772741000145,3.5742906,88.74,88.69,3.5742906]
[1772741000951,3.5742906,88.74,88.68,3.5742906]
[1772741001152,9.0233422,88.782,88.7,3.5742906]
[1772741001449,3.5742906,88.75,88.7,3.5742906]
[1772741001649,3.5742906,88.76,88.71,3.5742906]
[1772741002448,3.5742906,88.76,88.723,10.143]
[1772741002953,3.5742906,88.76,88.71,3.5742906]
[1772741003445,3.5742906,88.77,88.686,20.295]
[1772741003646,3.5742906,88.77,88.72,3.5742906]
[1772741004550,3.5742906,88.77,88.736,10.141]
[1772741006248,3.5742906,88.76,88.71,3.5742906]
[1772741007453,3.5742906,88.76,88.728,10.142]
[1772741010554,3.5742906,88.76,88.72,10.143]
[1772741010755,3.5742906,88.76,88.71,3.5742906]
[1772741011855,3.5742906,88.74,88.69,3.5742906]
[1772741012051,3.5742906,88.72,88.659,21.01267866]
[1772741012257,3.5742906,88.71,88.679,10.148]
[1772741012455,3.5742906,88.72,88.679,10.148]
[1772741013154,3.5742906,88.72,88.679,13.81647673]
[1772741014458,3.5742906,88.72,88.679,3.66847673]
[1772741015251,3.5742906,88.72,88.68,10.148]
[1772741015451,3.5742906,88.73,88.681,3.66847673]
[1772741015958,3.5742906,88.73,88.683,3.66847673]
[1772741017361,3.5742906,88.73,88.688,10.147]
[1772741017661,3.6548916,88.755,88.69,3.5742906]
[1772741017862,3.5742906,88.74,88.691,3.66847673]
[1772741018160,3.5742906,88.76,88.711,3.66847673]
[1772741018359,3.5742906,88.75,88.711,3.66847673]
[1772741018660,3.5742906,88.75,88.712,10.144]
[1772741018857,3.6548916,88.759,88.712,10.144]
[1772741019158,3.6548916,88.759,88.719,10.143]
[1772741019363,3.6548916,88.759,88.711,3.66847673]
[1772741019558,3.5742906,88.75,88.711,3.66847673]
[1772741024161,3.5742906,88.74,88.703,10.145]
[1772741024458,3.6548916,88.749,88.703,10.145]
[1772741026065,13.7948916,88.749,88.703,10.145]
[1772741027161,10.14,88.746,88.703,10.145]
[1772741029565,13.7948916,88.746,88.703,10.145]
[1772741030166,13.7948916,88.746,88.709,10.144]
[1772741030662,3.6548916,88.746,88.71,3.57688751]
[1772741031259,3.6548916,88.746,88.701,3.66847673]
[1772741032459,3.6548916,88.746,88.711,10.144]
[1772741033065,7.23177911,88.77,88.721,3.66847673]
[1772741033261,3.6548916,88.769,88.721,3.66847673]
[1772741033568,3.6548916,88.782,88.731,3.66847673]
[1772741033765,3.6548916,88.782,88.741,3.66847673]
[1772741034367,3.6548916,88.782,88.745,10.14]
[1772741034770,3.6548916,88.782,88.741,3.66847673]
[1772741039476,3.6548916,88.779,88.731,3.66847673]
[1772741040977,3.62791571,88.769,88.72,3.57688751]
[1772741041178,3.62791571,88.769,88.72,7.23158393]
[1772741041380,10.138,88.765,88.72,7.23158393]
[1772741041678,10.138,88.765,88.721,3.65469642]
[1772741041879,3.62791571,88.759,88.711,10.144]
[1772741042375,3.62791571,88.759,88.712,3.65469642]
[1772741042376,3.57688751,88.75,88.712,3.65469642]
[1772741042578,3.57688751,88.74,88.697,3.65469642]
[1772741042873,7.20480322,88.73,88.684,3.65469642]
[1772741043078,3.57688751,88.72,88.684,3.65469642]
[1772741043478,3.62791571,88.729,88.684,3.65469642]
[1772741043684,3.57688751,88.74,88.691,3.65469642]
[1772741044485,3.57688751,88.73,88.691,3.65469642]
[1772741045588,3.62791571,88.729,88.68,13.72488751]
[1772741045782,3.57688751,88.72,88.68,10.148]
[1772741045983,3.62791571,88.729,88.683,3.65469642]
[1772741046787,3.57688751,88.72,88.683,3.65469642]
[1772741047181,3.62791571,88.729,88.683,3.65469642]
[1772741047380,3.57688751,88.72,88.683,3.65469642]
[1772741048681,3.57688751,88.72,88.675,10.148]
[1772741048886,3.57688751,88.72,88.676,3.65469642]
[1772741049086,10.143,88.727,88.678,3.65469642]
[1772741049686,3.57688751,88.72,88.678,3.65469642]
[1772741050892,3.57688751,88.71,88.67,3.57688751]
[1772741051089,3.57688751,88.7,88.665,3.65469642]
[1772741051289,3.62791571,88.709,88.665,3.65469642]
[1772741051690,3.62791571,88.709,88.668,3.65469642]
[1772741053988,3.57688751,88.69,88.654,3.65469642]
[1772741054189,3.62791571,88.699,88.654,3.65469642]
[1772741055490,3.62791571,88.699,88.662,10.15]
[1772741055994,10.145,88.707,88.665,3.65469642]
[1772741056396,3.57688751,88.71,88.665,3.65469642]
[1772741057298,3.57688751,88.7,88.668,10.149]
[1772741059391,3.57688751,88.7,88.617,20.311]
[1772741059392,3.62791571,88.679,88.624,3.65469642]
[1772741059699,3.57688751,88.67,88.624,3.65469642]
[1772741060194,3.62791571,88.679,88.631,3.65469642]
[1772741060594,3.57688751,88.67,88.631,3.65469642]
[1772741061189,3.62791571,88.669,88.621,10.155]
[1772741062299,3.57688751,88.66,88.621,10.155]
[1772741063599,13.77691571,88.669,88.621,10.155]
[1772741064394,10.43461929,88.728,88.601,3.65469642]
[1772741064395,3.62791571,88.659,88.601,3.65469642]
[1772741064601,3.57688751,88.65,88.601,3.65469642]
[1772741064799,3.57688751,88.65,88.544,158.104]
[1772741064800,3.62791571,88.639,88.584,3.65469642]
[1772741064991,3.62791571,88.639,88.591,3.65469642]
[1772741065601,3.57688751,88.63,88.594,3.65469642]
[1772741065794,3.57688751,88.63,88.58,3.57688751]
[1772741065991,7.20480322,88.63,88.581,3.65469642]
[1772741066196,13.78191571,88.629,88.581,3.65469642]
[1772741066599,3.62791571,88.628,88.581,3.65469642]
[1772741066795,3.57688751,88.62,88.574,13.81469642]
[1772741067000,3.62791571,88.619,88.574,3.65469642]
[1772741067198,3.57688751,88.6,88.554,3.65469642]
[1772741067398,3.62791571,88.609,88.56,7.23158393]
[1772741067795,3.62791571,88.607,88.56,7.23158393]
[1772741068001,3.66738671,88.589,88.542,3.74192251]
[1772741068499,3.57688751,88.58,88.53,13.90692251]
[1772741068699,3.57688751,88.58,88.531,3.74192251]
[1772741068900,3.66738671,88.589,88.541,3.74192251]
[1772741069396,178.201,88.659,88.56,7.31881002]
[1772741069397,3.66738671,88.605,88.56,7.31881002]
[1772741069597,3.66738671,88.605,88.561,3.74192251]
[1772741070405,3.57688751,88.6,88.561,3.74192251]
[1772741070703,3.57688751,88.61,88.561,3.74192251]
[1772741071399,7.41125614,88.62,88.571,3.99931452]
[1772741071601,3.57688751,88.63,88.581,3.99931452]
[1772741072398,3.57688751,88.63,88.582,10.159]
[1772741072593,3.57688751,88.6,88.55,3.99931452]
[1772741072796,3.57688751,88.57,88.525,3.99931452]
[1772741072994,1.96438147,88.658,88.541,3.99931452]
[1772741072995,3.83436863,88.603,88.541,3.99931452]
[1772741073196,7.41125614,88.6,88.55,3.57688751]
[1772741073499,7.41125614,88.6,88.495,16.30398031]
[1772741073500,3.57688751,88.57,88.522,3.99931452]
[1772741073703,3.83436863,88.597,88.55,3.57688751]
[1772741073901,3.83436863,88.612,88.56,3.57688751]
[1772741074106,3.57688751,88.6,88.551,3.99931452]
[1772741074401,3.83436863,88.618,88.561,3.99931452]
[1772741074604,3.57688751,88.67,88.601,3.99931452]
[1772741074802,3.57688751,88.69,88.612,3.99931452]
[1772741074995,3.57688751,88.66,88.612,3.99931452]
[1772741075196,1.96393249,88.698,88.621,3.99931452]
[1772741075400,3.57688751,88.74,88.68,3.57688751]
[1772741075705,3.57688751,88.72,88.67,3.57688751]
[1772741075906,1.96214415,88.758,88.651,3.99931452]
[1772741076102,1.96214415,88.758,88.67,3.57688751]
[1772741076103,3.57688751,88.73,88.67,3.57688751]
[1772741076302,3.57688751,88.72,88.671,3.99931452]
[1772741076508,2.63586079,88.719,88.652,3.99931452]
[1772741076707,2.73158806,88.739,88.652,3.99931452]
[1772741076907,2.73158806,88.739,88.665,3.99931452]
[1772741077106,2.73158806,88.759,88.681,3.99931452]
[1772741077502,2.73158806,88.777,88.704,3.99931452]
[1772741077899,2.73158806,88.777,88.706,3.99931452]
[1772741078208,2.73158806,88.809,88.721,3.99931452]
[1772741078404,2.73158806,88.789,88.702,3.99931452]
[1772741078606,9.59235247,88.83,88.731,4.00221708]
[1772741078810,1.96088375,88.819,88.731,4.00221708]
[1772741079006,1.96088375,88.819,88.751,3.99931452]
[1772741079312,9.59235247,88.81,88.731,3.99931452]
[1772741079806,9.59235247,88.83,88.731,3.99931452]
[1772741080011,1.96039219,88.839,88.76,3.99931452]
[1772741080201,9.59235247,88.85,88.76,3.99931452]
[1772741080401,1.96061309,88.809,88.741,3.99931452]
[1772741080713,0.38783938,88.861,88.781,3.99931452]
[1772741081910,0.55271002,88.881,88.796,3.99931452]
[1772741082109,0.55271002,88.881,88.801,3.99931452]
[1772741082404,0.55271002,88.881,88.802,3.99931452]
[1772741082601,0.55271002,88.939,88.841,3.99931452]
[1772741082802,1.07667126,88.919,88.841,3.99931452]
[1772741083001,1.07667126,88.919,88.82,9.59235247]
[1772741083002,1.07667126,88.919,88.821,3.99931452]
[1772741083203,1.07667126,88.899,88.821,3.99931452]
[1772741083404,1.07667126,88.879,88.8,3.99931452]
[1772741083602,9.59235247,88.84,88.761,3.99931452]
[1772741083911,1.07667126,88.839,88.761,3.99931452]
[1772741084211,9.59235247,88.85,88.761,3.99931452]
[1772741084404,9.59235247,88.87,88.781,3.99931452]
[1772741084601,1.07667126,88.878,88.781,3.99931452]
[1772741085011,1.08550351,88.869,88.781,3.99931452]
[1772741085508,157.436,88.921,88.74,9.59235247]
[1772741085509,9.59235247,88.9,88.801,3.99931452]
[1772741085708,1.08550351,88.899,88.801,3.99931452]
[1772741085903,1.08550351,88.899,88.811,3.99931452]
[1772741086908,1.95846148,88.931,88.831,3.99931452]
[1772741087105,0.95596857,88.96,88.871,3.99931452]
[1772741087514,0.95596857,88.945,88.871,3.99931452]
[1772741088011,11.07396857,88.945,88.871,3.99931452]
[1772741088312,9.59235247,88.92,88.851,3.99931452]
[1772741088713,1.04133431,88.928,88.851,3.99931452]
[1772741089116,10.121,88.913,88.851,3.99931452]
[1772741089313,1.04133431,88.899,88.811,3.99931452]
[1772741089713,1.04133431,88.899,88.813,3.99931452]
[1772741090509,1.04133431,88.92,88.841,3.99931452]
[1772741090812,10.119,88.934,88.843,3.99931452]
[1772741091114,10.6925285,88.96,88.861,3.99931452]
[1772741091314,10.118,88.944,88.863,3.99931452]
[1772741091715,1.1468694,88.943,88.863,3.99931452]
[1772741091914,1.1468694,88.919,88.843,3.99931452]
[1772741092112,10.6925285,88.94,88.843,3.99931452]
[1772741092508,1.1468694,88.939,88.843,3.99931452]
[1772741092707,1.1854217,88.986,88.901,3.99931452]
[1772741092907,9.5456591,89.0,88.901,3.99931452]
[1772741093111,1.1854217,88.999,88.901,3.99931452]
[1772741093309,1.1854217,88.999,88.921,3.99931452]
[1772741093716,10.113,88.984,88.921,3.99931452]
[1772741094410,10.115,88.971,88.9,9.5456591]
[1772741094615,10.115,88.971,88.901,3.99931452]
[1772741094815,10.116,88.96,88.901,3.99931452]
[1772741095014,1.25102855,88.97,88.881,3.99931452]